Cogmind - Beta 16 @@@ ROGUE MODE // 2025.10.23 @ 21:00:39 Player: FrigidRock Result: Destroyed by as-05506 with Assembled Heavy Rifle Performance ------------- Evolutions (0) 0 Regions Visited (2) 400 Robots Destroyed (9) 45 Value Destroyed (224) 224 Prototype IDs (0) 0 Alien Tech Used (0) 0 Bonus (0) 0 TOTAL SCORE: 669 Bonus ------- None Cogmind --------- Core Integrity 0/250 Matter 277/300 Energy 89/100 System Corruption 0% Temperature Cool (20) Movement Core (50) Location -10/Mines Parts ------- > --- POWER (1) -------- (None) > --- PROPULSION (2) --- (None) > --- UTILITY (2) ------ (None) > --- WEAPON (2) ------- (None) > --- INVENTORY (5) ---- Ion Engine Aluminum Leg Flight Unit Medium Storage Unit Huge Storage Unit Peak State ------------ > --- POWER ------------ Ion Engine > --- PROPULSION ------- Aluminum Leg Aluminum Leg > --- UTILITY ---------- Small Storage Unit Seismic Detector > --- WEAPON ----------- Particle Gun Assault Rifle > --- INVENTORY -------- Ion Engine Ion Engine Aluminum Leg Aluminum Leg Aluminum Leg Aluminum Leg Aluminum Leg Light Assault Rifle [Rating: 8] Favorites ----------- Power Ion Engine Engine Ion Engine Propulsion Aluminum Leg Leg Aluminum Leg Utility Seismic Detector Device Seismic Detector Storage Small Storage Unit Weapon Assault Rifle Energy Gun Particle Gun Ballistic Gun Assault Rifle Build | -11 -10 -10 ------- Run | Yrd Mat Min Slots Evolved . | . . . Power . | . . . Propulsion . | . . . Utility . | . . . Weapon . | . . . Parts Attached 13 | 7 6 . Power 2 | 1 1 . Engine 2 | 1 1 . Core . | . . . Reactor . | . . . Propulsion 3 | 2 1 . Treads . | . . . Leg 3 | 2 1 . Wheel . | . . . Hover . | . . . Flight . | . . . Utility 3 | 1 2 . Device 1 | . 1 . Storage 2 | 1 1 . Processor . | . . . Hackware . | . . . Protection . | . . . Artifact . | . . . Weapon 5 | 3 2 . Energy Gun 1 | . 1 . Energy Cannon . | . . . Ballistic Gun 4 | 3 1 . Ballistic Cannon . | . . . Launcher . | . . . Special Weapon . | . . . Impact Weapon . | . . . Slashing Weapon . | . . . Piercing Weapon . | . . . Special Melee Weapon . | . . . Unidentified Prototypes . | . . . Parts Lost 4 | . . 4 Power 1 | . . 1 Propulsion 2 | . . 2 Utility 1 | . . 1 Weapon . | . . . Highest Loss Streak 4 | . . 4 To Critical Strikes . | . . . Average Backups 4 | 1 4 7 Power 1 | . 1 2 Propulsion 1 | . 1 3 Utility . | . . 1 Weapon . | . 1 1 Tool/Special . | . . . Unused Backups 6 | . . 6 Power 1 | . . 1 Propulsion 4 | . . 4 Utility 1 | . . 1 Weapon . | . . . Tool/Special . | . . . Average Slot Usage (%) 97 | . 99 85 Engine 13 | . 14 12 Leg 27 | . 28 24 Device 13 | . 13 14 Storage 13 | . 14 12 Energy Gun 6 | . 5 12 Ballistic Gun 20 | . 22 8 Peak Build Rating 8 | 6 8 8 Average Rating 7 | 4 7 7 On Entrance 4 | . 6 8 Avg Prop Armor Cover (%) . | . . . Naked Turns . | . . . Heaviest Build 21 | 13 21 21 Greatest Support 20 | 20 20 20 Greatest Overweight (x) 1 | 1 1 1 Average Overweight (x) . | . . . Largest Inventory Capacity 10 | 8 10 10 Average Capacity 8 | 7 8 9 Most Carried 10 | 2 8 10 Average Carried 4 | 1 4 8 Final Capacity 10 | 8 10 5 Final Carried 8 | 2 8 5 Class Distribution -------------------- 78% | Mutant 21% | Scavenger-Mutant Dominant Class ---------------- Mutant | -10/Materials Scavenger-Mutant | -10/Mines Resources | -11 -10 -10 ----------- Run | Yrd Mat Min Matter Collected 428 | 282 110 36 Remotely . | . . . Salvage Created 355 | 74 259 22 Parts 19 | 2 13 4 Haulers Intercepted 1 | . 1 . Recyclers Shooed . | . . . Parts Field Recycled . | . . . Retrieved Matter . | . . . Parts Self-Destructed . | . . . Prevented . | . . . Parts Restored . | . . . Kills | -11 -10 -10 ------- Run | Yrd Mat Min Combat Hostiles Destroyed 7 | . 5 2 Guns 7 | . 5 2 Classes Destroyed 4 | 1 2 1 Hauler 1 | . 1 . Recycler 1 | 1 . . Swarmer 2 | . . 2 Grunt 5 | . 5 . Best Kill Streak 3 | 1 3 2 Combat Bots Only 3 | . 3 2 Max Kills in Single Turn 1 | 1 1 1 Gunslinging . | . . . Exploded . | . . . Melee . | . . . Uniques/NPCs Destroyed . | . . . Combat | -11 -10 -10 -------- Run | Yrd Mat Min Hostile Shots Fired 84 | . 29 55 Missed 19 | . 7 12 Hits 65 | . 22 43 Melee 2 | . . 2 Projectile 63 | . 22 41 Critical Strikes 1 | . . 1 Damage Taken 812 | . 286 526 Core 261 | . 57 204 Absorbed by Shields . | . . . Core Remaining (%) 100 | 100 . . Volleys Fired 31 | 3 19 9 Largest 2 | 2 2 2 Hottest 85 | 40 85 85 Shots Fired 62 | 6 38 18 Gun 62 | 6 38 18 Cannon . | . . . Launcher . | . . . Special . | . . . Kinetic 49 | 6 34 9 Thermal 13 | . 4 9 Explosive . | . . . Electromagnetic . | . . . Robot Hit Streak 12 | 4 12 2 Robot Miss Streak 3 | 2 3 3 Penetration Max . | . . . Secondary Targets 1 | . 1 . Max Gunslinging Chain 1 | . 1 . Shots Hit Robots 36 | 4 25 7 Core Hits 16 | 2 12 2 Critical Kills . | . . . Critical Parts Destroyed . | . . . Critical Strikes . | . . . Melee Attacks . | . . . Impact . | . . . Slashing . | . . . Piercing . | . . . Sneak Attacks . | . . . Combat Hostiles . | . . . Follow-up Attacks . | . . . Damage Inflicted 475 | 41 319 115 Guns 475 | 41 319 115 Cannons . | . . . Explosions . | . . . Melee . | . . . Ramming . | . . . Kinetic 416 | 41 303 72 Thermal 59 | . 16 43 Explosive . | . . . Electromagnetic . | . . . Impact . | . . . Slashing . | . . . Piercing . | . . . Highest Corruption . | . . . Average Corruption . | . . . Corruption Purged . | . . . Corruption Blocked . | . . . Overload Shots . | . . . Overflow Damage . | . . . Projectiles . | . . . Explosions . | . . . Melee . | . . . Knockbacks . | . . . Impact . | . . . Kinetic . | . . . Secondary . | . . . Self-Inflicted Damage . | . . . Shots . | . . . Rammed . | . . . Targets Rammed . | . . . Kicked . | . . . Crushed . | . . . Highest Temperature 216 | . 48 216 Average Temperature 74 | . 19 106 Received Heat Transfer 253 | . 153 100 Effects 1 | . . 1 Energy Bleed 1 | . . 1 Siege Activations . | . . . Martial Activations . | . . . Shielding Activations . | . . . Robots Disrupted . | . . . Combat Hostiles . | . . . Robots Corrupted . | . . . Combat Hostiles . | . . . Parts Fried . | . . . Impact Corruptions . | . . . Robots Melted . | . . . Combat Hostiles . | . . . Parts Melted 1 | . . 1 Heat Transferred 148 | . 37 111 Parts Sabotaged . | . . . Parts Stolen . | . . . Parts Stripped . | . . . Power Chain Reactions . | . . . Alert | -11 -10 -10 ------- Run | Yrd Mat Min Maximum Alert Level . | . . . Low Security (%) 100 | 100 100 100 Level 1 . | . . . Level 2 . | . . . Level 3 . | . . . Level 4 . | . . . Level 5 . | . . . High Security . | . . . Max Security . | . . . Peak Influence 81 | 5 81 45 Initial . | . . . Average 23 | 1 26 28 Influence Increases 216 | 5 146 65 Destroy 0b10 Robot/C 140 | . 100 40 Destroy 0b10 Robot/NC 10 | 5 5 . Destroy Leader 32 | . 22 10 Successful Hack 18 | . 18 . Destroy Structure 1 | . 1 . Lose Combat Pursuer 15 | . . 15 Influence Decreases 216 | 5 146 65 Time Decay 181 | 5 146 30 Lost Part 35 | . . 35 Squads Dispatched . | . . . Investigation . | . . . Extermination . | . . . Reinforcement . | . . . Assault . | . . . Garrison . | . . . Intercept . | . . . Searches Triggered . | . . . Construction Impeded . | . . . Haulers Reinforced . | . . . Active Scanning Responses . | . . . Cargo Convoy Interrupts . | . . . Stealth | -11 -10 -10 --------- Run | Yrd Mat Min Distress Signals . | . . . Communications Jammed . | . . . Distress Signals . | . . . Times Spotted 20 | . 5 15 Peak Tracking Total 10 | . 2 10 Tactical Retreats 1 | . . 1 Traps | -11 -10 -10 ------- Run | Yrd Mat Min Traps Triggered . | . . . Indirectly . | . . . Trap Hack Attempts . | . . . Triggered . | . . . Disarmed . | . . . Reprogrammed . | . . . Reused . | . . . Traps Extracted . | . . . Installed . | . . . Triggered . | . . . Machines | -11 -10 -10 ---------- Run | Yrd Mat Min Machines Disabled . | . . . Max in Single Turn . | . . . Machines Repaired . | . . . Machines Dismantled . | . . . Machines Sabotaged . | . . . Overloaded Fab Kills . | . . . Hacking | -11 -10 -10 --------- Run | Yrd Mat Min Machines Accessed 3 | . 3 . Terminals 3 | . 3 . Fabricators . | . . . Repair Stations . | . . . Recycling Units . | . . . Scanalyzers . | . . . Garrison Access . | . . . Total Hacks 8 | . 8 . Successful 4 | . 4 . Failed 4 | . 4 . Catastrophic . | . . . Database Lockouts . | . . . Manual 5 | . 5 . Terminals 8 | . 8 . Fabricators . | . . . Repair Stations . | . . . Recycling Units . | . . . Scanalyzers . | . . . Garrison Access . | . . . Terminal Hacks 3 | . 3 . Robot Analysis 1 | . 1 . Branch Access Points 1 | . 1 . Unreport Threat 1 | . 1 . Fabricator Hacks . | . . . Repair Station Hacks . | . . . Recycling Unit Hacks . | . . . Scanalyzer . | . . . Garrison Access Hacks . | . . . Unauthorized Hacks 1 | . 1 . Terminals 1 | . 1 . Botnet 1 | . 1 . Fabricators . | . . . Repair Stations . | . . . Recycling Units . | . . . Scanalyzers . | . . . Garrison Access . | . . . Data Cores Recovered . | . . . Used . | . . . Hacking Detections 3 | . 3 . Full Trace Events . | . . . Feedback Events . | . . . Feedback Blocked . | . . . Robot Schematics Acquired . | . . . Robots Built . | . . . Authchips . | . . . Time . | . . . Total Robot Build Rating . | . . . Part Schematics Acquired . | . . . Parts Built . | . . . Authchips . | . . . Time . | . . . Total Part Build Rating . | . . . Part Studies Acquired . | . . . Parts Repaired . | . . . Time . | . . . Parts Recycled . | . . . Recycled Matter . | . . . Retrieved Matter . | . . . Retrieved Components . | . . . Parts Scanalyzed . | . . . Part Schematics Acquired . | . . . Parts Damaged . | . . . Bothacking | -11 -10 -10 ------------ Run | Yrd Mat Min Used RIF Installer . | . . . Robots Hacked . | . . . Non-combat . | . . . Combat . | . . . Robot Hacks Applied . | . . . Relay Couplers Released . | . . . Fabnet Peak Effective % . | . . . Robots Rewired . | . . . Allies Hacked . | . . . Hacks Repelled . | . . . Allies | -11 -10 -10 -------- Run | Yrd Mat Min Total Allies . | . . . Largest Group . | . . . Highest-Rated Group . | . . . Highest-Rated Ally . | . . . Total Orders . | . . . Ally Attacks . | . . . Total Damage . | . . . Kills . | . . . Allies Corrupted . | . . . Allies Melted . | . . . Intel | -11 -10 -10 ------- Run | Yrd Mat Min Active Infowar (turns) 452 | . 389 63 Seismic 452 | . 389 63 Robot Analysis Total 1 | . 1 . Derelict Logs Recovered . | . . . Drone Launches . | . . . Drone Recoveries . | . . . Exploration | -11 -10 -10 ------------- Run | Yrd Mat Min Turns Passed 530 | 66 401 63 Spaces Moved 303 | 42 238 23 Core 13 | 10 . 3 Treads . | . . . Legs 290 | 32 238 20 Wheels . | . . . Hover . | . . . Flight . | . . . Fastest Speed 50 | 50 120 50 Average Speed 126 | 111 129 129 Slowest Speed 190 | 190 190 190 Overloaded Moves . | . . . Propulsion Burnouts . | . . . Robots Hopped . | . . . Potential Cave-ins . | . . . Cave-ins Triggered . | . . . Exploration Rate (%) 16 | 3 43 4 Regions Visited 2 Branch Regions 1 Pre-discovered Areas . | . . . Known Exits Taken 1 | . 1 . Unknown Exits Taken 1 | 1 . . Scrap Searched . | . . . Spaces Dug . | . . . Terrain Destroyed . | . . . Melee . | . . . Projectile . | . . . AOE . | . . . Terrain Rammed . | . . . Walls Destroyed . | . . . Machines Disabled . | . . . Actions | -11 -10 -10 --------- Run | Yrd Mat Min Total 387 | 52 293 42 Wait 22 | . 22 . Move 301 | 41 237 23 Hop . | . . . Pick Up 7 | 1 5 1 Fast Attach 9 | 6 3 . Attach . | . . . Detach 2 | . . 2 Swap 4 | 1 3 . Drop 11 | . 4 7 Fire 31 | 3 19 9 Melee . | . . . Ram . | . . . Kick . | . . . Crush . | . . . Escape Stasis . | . . . Rewire . | . . . Trap . | . . . Miscellaneous . | . . . Route ------- -11/Scrapyard -10/Materials (discovered 2 exits: [*Mat] / *Min) -10/Mines History --------- Turn | Location | Event 2 | -11/Scrapyard | Met Revision 17 22 | -11/Scrapyard | Discovered new exit (range 16) 67 | -11/Scrapyard | Entered Materials 115 | -10/Materials | Identified exit to Mines 317 | -10/Materials | Build established: Mutant 378 | -10/Materials | Discovered new exit (range 13) 468 | -10/Materials | Entered Mines 496 | -10/Mines | Assembled infested the area 527 | -10/Mines | Core integrity fell below 50% 531 | -10/Mines | Core integrity fell below 20% 531 | -10/Mines | Destroyed by as-05506 with Assembled Heavy Rifle Last Messages --------------- 00494_ Overheating: Energy bleed (-52). 00494_ R-06 Scavenger collects Lgt. Assault Rifle. 00496_ ALERT: Infestation in the mines, dispatching Demolisher response squad. 00497_ R-06 Scavenger collects Flight Unit. 00499_ S-10 Pest destroyed. 00505_ Acquired 10 matter. 00511_ R-06 Scavenger destroyed. 00516_ Acquired Flight Unit. 00519_ Acquired 14 matter. 00522_ Acquired 12 matter. 00525_ Dropped Aluminum Leg. 00527_ Ion Engine destroyed. 00527_ Dropped Assault Rifle. 00527_ Dropped Lgt. Assault Rifle. 00528_ Aluminum Leg destroyed. 00528_ Dropped Ion Engine. 00529_ Aluminum Leg destroyed. 00529_ Dropped Particle Gun. 00531_ Seismic Detector destroyed. Map ----- +----------------------------------------------------+ | | | | | | | | | | | | | | | | | ?????????????????????????????????????????????????? | | ?????????????????????????????????????????????????? | | ?????????????????????????????????????????????????? | | ?????????????????????????????????????????????????? | | ?????????????????????????????????????????????????? | | ?????????????????????????????????????????????????? | | ?????????????????????????????????????????????????? | | ?????????????????????????????????????????????????? | | ????????????????????##???????????????????????????? | | ????????????????????? #??????????????????????????? | | ????????????????????? ##????????????????????????? | | ?????????????????????? %*????????????????????????? | | ?????????????????????? [!????????????????????????? | | ???????????????????????|=????????????????????????? | | ??????????????????????##%????????????????????????? | | ???????????## ##???##*a##??????????????????????? | | ???????????# ##[%a #??????????????????????? | | ???????????# a [a@##?????????????????????? | | ???????????# %%! !## a #?????????????????????? | | ??????????????????????##aaa##????????????????????? | | ???????????????????????##[a=##???????????????????? | | ????????????????????????# a=[###?????????????????? | | ????????????????????????# ##????????????????? | | ????????????????????????## *###??????????????? | | ?????????????????????????### * #??????????????? | | ???????????????????????????##### [#??????????????? | | ???????????????????????????????####??????????????? | | ?????????????????????????????????????????????????? | | ?????????????????????????????????????????????????? | | ?????????????????????????????????????????????????? | | ?????????????????????????????????????????????????? | | ?????????????????????????????????????????????????? | | ?????????????????????????????????????????????????? | | ?????????????????????????????????????????????????? | | ?????????????????????????????????????????????????? | | ?????????????????????????????????????????????????? | | ?????????????????????????????????????????????????? | | ?????????????????????????????????????????????????? | | ?????????????????????????????????????????????????? | | ?????????????????????????????????????????????????? | | ?????????????????????????????????????????????????? | | ?????????????????????????????????????????????????? | +----------------------------------------------------+ Best States ------------- Heat Dissipation 25 Energy Generation 10 Energy Capacity 250 Matter Stores 300 Matter Capacity 300 Sight Range 16 Terrain Scan Density 10 Evasion (%) 55 Item Schematics ----------------- None Robot Schematics ------------------ None Fabricated ------------ Nothing Repaired ---------- Nothing Studied --------- None Alien Tech Used ----------------- None Achievements -------------- None Challenges ------------ None Game ------ Seed FortressAssaultLaser Manual? 0 Play Time 00:05:32 Cumulative 370.5 hours Start 2025.10.23 @ 20:56:17 End 2025.10.23 @ 21:00:39 Sessions 1 Manual Loads 0 Difficulty Rogue Special Mode None Game No. 156 Rogue 85 Adventurer 68 Explorer 3 Win Type - Total 30 Types 18/2/2/4/3/0/0/0/0/1 Lore% 78 Gallery% 75 Achievement% 44 Wizard Run 0 Options --------- Layout 0 ASCII 0 Keyboard 0 Movement Numpad Keybinds 0 Fullscreen 1 Font 24/Smallcaps Map View 76x50 Zoom Use 0% Tactical HUD 1 Map Filters NONE Filters NONE Steam 1 RUN: 4548e383-80e8-4718-a957-8c2bb138ade3